[Event "Late-Titled-Tuesday-Blitz-May-14-2024"]
[Site "Chess.com"]
[Date "2024.05.14"]
[Round "10"]
[White "GlavkonVVS"]
[Black "dennisodessa"]
[Result "1-0"]
[WhiteElo "2627"]
[BlackElo "2458"]
[TimeControl "180+1"]
[EndTime "15:54:52 PDT"]
[Termination "GlavkonVVS won on time"]

1. c4 {[%clk 0:03:00.9]} 1... e5 {[%clk 0:02:56.5]} 2. Nc3 {[%clk 0:03:00.8]}
2... Nf6 {[%clk 0:02:54.9]} 3. g3 {[%clk 0:03:01]} 3... Bc5 {[%clk 0:02:50.9]}
4. Bg2 {[%clk 0:03:01.1]} 4... Nc6 {[%clk 0:02:51]} 5. e3 {[%clk 0:03:01.6]}
5... a6 {[%clk 0:02:50.4]} 6. Nge2 {[%clk 0:03:02.1]} 6... Ba7 {[%clk 0:02:51]}
7. d4 {[%clk 0:03:02.2]} 7... O-O {[%clk 0:02:50.5]} 8. O-O {[%clk 0:03:01.4]}
8... d6 {[%clk 0:02:49.4]} 9. h3 {[%clk 0:03:01.1]} 9... Bf5 {[%clk 0:02:46.7]}
10. g4 {[%clk 0:03:01.6]} 10... Bg6 {[%clk 0:02:45.5]} 11. f4 {[%clk 0:03:01.8]}
11... exd4 {[%clk 0:02:35.9]} 12. exd4 {[%clk 0:03:01.5]} 12... h6 {[%clk
0:02:32]} 13. f5 {[%clk 0:03:01.6]} 13... Bh7 {[%clk 0:02:32.1]} 14. g5 {[%clk
0:02:53.2]} 14... hxg5 {[%clk 0:02:30.3]} 15. Bxg5 {[%clk 0:02:53.8]} 15... Qe8
{[%clk 0:02:10.3]} 16. Qd3 {[%clk 0:02:35.9]} 16... Ne5 {[%clk 0:02:04]} 17. Qg3
{[%clk 0:02:32.5]} 17... Ned7 {[%clk 0:02:04]} 18. Rae1 {[%clk 0:02:29.9]} 18...
Nh5 {[%clk 0:01:59.8]} 19. Qh4 {[%clk 0:02:28.7]} 19... f6 {[%clk 0:01:31.1]}
20. Bc1 {[%clk 0:02:24.4]} 20... g5 {[%clk 0:01:27.4]} 21. Qf2 {[%clk
0:02:10.7]} 21... c6 {[%clk 0:01:12.8]} 22. Nf4 {[%clk 0:02:01]} 22... Nxf4
{[%clk 0:01:05.5]} 23. Rxe8 {[%clk 0:01:55.4]} 23... Raxe8 {[%clk 0:01:06.4]}
24. Bxf4 {[%clk 0:01:55.1]} 24... gxf4 {[%clk 0:01:06.7]} 25. Qxf4 {[%clk
0:01:53.8]} 25... Ne5 {[%clk 0:00:51.5]} 26. b3 {[%clk 0:01:44]} 26... Kh8
{[%clk 0:00:44.8]} 27. Kh1 {[%clk 0:01:42.8]} 27... Nf7 {[%clk 0:00:33.8]} 28.
b4 {[%clk 0:01:24]} 28... Rg8 {[%clk 0:00:32.5]} 29. c5 {[%clk 0:01:22]} 29...
Bb8 {[%clk 0:00:31.3]} 30. Qh4 {[%clk 0:01:07.8]} 30... Ng5 {[%clk 0:00:31.2]}
31. Ne4 {[%clk 0:01:03.8]} 31... Nxe4 {[%clk 0:00:28.8]} 32. Bxe4 {[%clk
0:01:03.8]} 32... Rg5 {[%clk 0:00:24]} 33. Rg1 {[%clk 0:00:58.8]} 33... Rxg1+
{[%clk 0:00:03.2]} 34. Kxg1 {[%clk 0:00:58.6]} 34... Kg7 {[%clk 0:00:04.1]} 35.
Kf2 {[%clk 0:00:51.5]} 35... d5 {[%clk 0:00:04.2]} 36. Bd3 {[%clk 0:00:47.9]}
36... Rf8 {[%clk 0:00:03.7]} 37. a4 {[%clk 0:00:44.2]} 37... Bc7 {[%clk
0:00:03.5]} 38. b5 {[%clk 0:00:43.8]} 38... axb5 {[%clk 0:00:04.4]} 39. axb5
{[%clk 0:00:43.9]} 39... Ba5 {[%clk 0:00:03.5]} 40. Qg3+ {[%clk 0:00:42.6]}
40... Kh8 {[%clk 0:00:03.4]} 41. Qd6 {[%clk 0:00:41.3]} 41... Kg7 {[%clk
0:00:03.2]} 42. bxc6 {[%clk 0:00:40]} 42... bxc6 {[%clk 0:00:04.1]} 43. Qxc6
{[%clk 0:00:39.8]} 43... Bc3 {[%clk 0:00:05]} 44. Qxd5 {[%clk 0:00:39.3]} 44...
Bg8 {[%clk 0:00:03.6]} 45. Qe4 {[%clk 0:00:38.6]} 45... Rd8 {[%clk 0:00:03.9]}
46. Ke3 {[%clk 0:00:35.4]} 46... Kf8 {[%clk 0:00:02.3]} 47. Bb5 {[%clk 0:00:31]}
47... Bf7 {[%clk 0:00:01.3]} 48. Bc6 {[%clk 0:00:28.2]} 48... Rb8 {[%clk
0:00:02.2]} 49. d5 {[%clk 0:00:27.2]} 49... Be5 {[%clk 0:00:02.2]} 50. d6 {[%clk
0:00:25.5]} 50... Rb3+ {[%clk 0:00:02.6]} 51. Kd2 {[%clk 0:00:23.9]} 51... Bc4
{[%clk 0:00:01.3]} 52. Qxc4 {[%clk 0:00:23.2]} 1-0

[Event "Late-Titled-Tuesday-Blitz-May-14-2024"]
[Site "Chess.com"]
[Date "2024.05.14"]
[Round "10"]
[White "Quattroporte300"]
[Black "LeninGuerra"]
[Result "0-1"]
[WhiteElo "2449"]
[BlackElo "2653"]
[TimeControl "180+1"]
[EndTime "15:54:52 PDT"]
[Termination "LeninGuerra won on time"]

1. e4 {[%clk 0:03:00.9]} 1... c5 {[%clk 0:02:57.1]} 2. Nc3 {[%clk 0:02:57.9]}
2... e6 {[%clk 0:02:57.2]} 3. g3 {[%clk 0:02:57.3]} 3... b6 {[%clk 0:02:42.4]}
4. Bg2 {[%clk 0:02:57.4]} 4... Bb7 {[%clk 0:02:40]} 5. Nge2 {[%clk 0:02:57.8]}
5... d6 {[%clk 0:02:40.4]} 6. d4 {[%clk 0:02:57]} 6... cxd4 {[%clk 0:02:39.7]}
7. Nxd4 {[%clk 0:02:57.9]} 7... a6 {[%clk 0:02:40.2]} 8. O-O {[%clk 0:02:57.2]}
8... Nd7 {[%clk 0:02:40.6]} 9. Re1 {[%clk 0:02:56]} 9... Qc7 {[%clk 0:02:41]}
10. Qe2 {[%clk 0:02:42.5]} 10... Ngf6 {[%clk 0:02:24]} 11. f4 {[%clk 0:02:38]}
11... Be7 {[%clk 0:02:22.5]} 12. Be3 {[%clk 0:02:25]} 12... O-O {[%clk
0:02:15.7]} 13. h3 {[%clk 0:02:25]} 13... Rac8 {[%clk 0:02:07.9]} 14. Rad1
{[%clk 0:02:23.2]} 14... Nc5 {[%clk 0:02:06.9]} 15. Bf2 {[%clk 0:02:20.9]} 15...
Rfe8 {[%clk 0:02:03.3]} 16. g4 {[%clk 0:02:04.4]} 16... d5 {[%clk 0:01:59.4]}
17. e5 {[%clk 0:02:03.3]} 17... Nfe4 {[%clk 0:01:58.1]} 18. Nxe4 {[%clk
0:01:56.6]} 18... Nxe4 {[%clk 0:01:59]} 19. Bxe4 {[%clk 0:01:54.7]} 19... dxe4
{[%clk 0:01:59.9]} 20. c3 {[%clk 0:01:54.6]} 20... b5 {[%clk 0:01:58.1]} 21. Be3
{[%clk 0:01:47.9]} 21... b4 {[%clk 0:01:56.6]} 22. Rc1 {[%clk 0:01:35.9]} 22...
Qa5 {[%clk 0:01:52.6]} 23. cxb4 {[%clk 0:00:53.5]} 23... Qxa2 {[%clk 0:01:47.6]}
24. f5 {[%clk 0:00:49.6]} 24... Bxb4 {[%clk 0:01:41.9]} 25. Rf1 {[%clk
0:00:45.2]} 25... Rxc1 {[%clk 0:01:37.8]} 26. Rxc1 {[%clk 0:00:36.2]} 26... exf5
{[%clk 0:01:29.8]} 27. Nxf5 {[%clk 0:00:33.3]} 27... Qe6 {[%clk 0:01:26.7]} 28.
Bd4 {[%clk 0:00:26.6]} 28... e3 {[%clk 0:01:13.5]} 29. Nxe3 {[%clk 0:00:23]}
29... Rd8 {[%clk 0:01:11.6]} 30. Nf5 {[%clk 0:00:12.9]} 30... g6 {[%clk
0:01:05.7]} 31. Nh6+ {[%clk 0:00:10.6]} 31... Kg7 {[%clk 0:01:04.9]} 32. Qe3
{[%clk 0:00:11.1]} 32... Rxd4 {[%clk 0:00:32.1]} 33. Nf5+ {[%clk 0:00:04.8]}
33... gxf5 {[%clk 0:00:28.6]} 34. Qxd4 {[%clk 0:00:05.4]} 34... Qd5 {[%clk
0:00:27.4]} 35. Qxd5 {[%clk 0:00:04.5]} 35... Bxd5 {[%clk 0:00:28.3]} 36. Rc7
{[%clk 0:00:03.5]} 36... fxg4 {[%clk 0:00:26.6]} 37. hxg4 {[%clk 0:00:03.4]}
37... Be6 {[%clk 0:00:26.5]} 38. g5 {[%clk 0:00:03.1]} 38... a5 {[%clk
0:00:26.5]} 39. Kf2 {[%clk 0:00:02.7]} 39... Kg6 {[%clk 0:00:26.6]} 40. Ke3
{[%clk 0:00:03.2]} 40... Kxg5 {[%clk 0:00:26.7]} 41. Kd4 {[%clk 0:00:04]} 41...
Be1 {[%clk 0:00:25.9]} 42. Rc1 {[%clk 0:00:04.3]} 42... Bf2+ {[%clk 0:00:22.7]}
43. Ke4 {[%clk 0:00:04.6]} 43... h5 {[%clk 0:00:19.2]} 44. Ra1 {[%clk
0:00:04.8]} 44... Bb6 {[%clk 0:00:18.4]} 45. Ra3 {[%clk 0:00:02.3]} 45... h4
{[%clk 0:00:18.3]} 46. Rf3 {[%clk 0:00:01.1]} 46... h3 {[%clk 0:00:18]} 47. Rf1
{[%clk 0:00:01.1]} 47... h2 {[%clk 0:00:17.6]} 48. Kf3 {[%clk 0:00:01.6]} 48...
Bg1 {[%clk 0:00:17.2]} 49. Kg2 {[%clk 0:00:01.5]} 49... Bd5+ {[%clk 0:00:17.6]}
0-1

[Event "Late-Titled-Tuesday-Blitz-May-14-2024"]
[Site "Chess.com"]
[Date "2024.05.14"]
[Round "10"]
[White "FLamps8"]
[Black "Aygehovit1992"]
[Result "0-1"]
[WhiteElo "2707"]
[BlackElo "2842"]
[TimeControl "180+1"]
[EndTime "15:54:53 PDT"]
[Termination "Aygehovit1992 won by resignation"]

1. d4 {[%clk 0:02:48.6]} 1... Nf6 {[%clk 0:02:59.2]} 2. Nc3 {[%clk 0:02:48.1]}
2... d5 {[%clk 0:02:58.8]} 3. Bf4 {[%clk 0:02:48.7]} 3... g6 {[%clk 0:02:58.8]}
4. e3 {[%clk 0:02:48.1]} 4... Bg7 {[%clk 0:02:58.8]} 5. Nb5 {[%clk 0:02:48.6]}
5... Na6 {[%clk 0:02:58.7]} 6. h3 {[%clk 0:02:46.9]} 6... c6 {[%clk 0:02:57.3]}
7. Nc3 {[%clk 0:02:46.4]} 7... Nb8 {[%clk 0:02:27.6]} 8. Nf3 {[%clk 0:02:46]}
8... Bf5 {[%clk 0:02:22.7]} 9. Bd3 {[%clk 0:02:44.2]} 9... Bxd3 {[%clk 0:02:22]}
10. cxd3 {[%clk 0:02:45.1]} 10... O-O {[%clk 0:02:20.2]} 11. O-O {[%clk
0:02:44.9]} 11... Nbd7 {[%clk 0:02:19.7]} 12. b4 {[%clk 0:02:38.9]} 12... Re8
{[%clk 0:02:13]} 13. Rc1 {[%clk 0:02:35.6]} 13... Nh5 {[%clk 0:02:08.2]} 14. Bh2
{[%clk 0:02:34.7]} 14... e5 {[%clk 0:02:08.4]} 15. dxe5 {[%clk 0:02:33.5]} 15...
Nxe5 {[%clk 0:02:09.3]} 16. Nxe5 {[%clk 0:02:20.2]} 16... Bxe5 {[%clk
0:02:10.2]} 17. Bxe5 {[%clk 0:02:19.8]} 17... Rxe5 {[%clk 0:02:11.1]} 18. d4
{[%clk 0:02:20.3]} 18... Re6 {[%clk 0:02:10.1]} 19. b5 {[%clk 0:02:20]} 19...
Qa5 {[%clk 0:02:01.8]} 20. Qb3 {[%clk 0:02:17.2]} 20... Rc8 {[%clk 0:01:59.2]}
21. Nxd5 {[%clk 0:02:14.6]} 21... Kg7 {[%clk 0:01:52.4]} 22. Nc3 {[%clk
0:01:58.5]} 22... Nf6 {[%clk 0:01:47.5]} 23. Na4 {[%clk 0:01:46.4]} 23... b6
{[%clk 0:01:36.2]} 24. Nb2 {[%clk 0:01:37]} 24... h5 {[%clk 0:00:52.9]} 25. a4
{[%clk 0:01:36]} 25... c5 {[%clk 0:00:44.8]} 26. Nc4 {[%clk 0:01:11.2]} 26...
Qb4 {[%clk 0:00:44.6]} 27. Qxb4 {[%clk 0:01:11.8]} 27... cxb4 {[%clk 0:00:45.5]}
28. Ne5 {[%clk 0:01:12.1]} 28... Rxc1 {[%clk 0:00:42.4]} 29. Rxc1 {[%clk
0:01:13]} 29... Nd5 {[%clk 0:00:43.1]} 30. Nc6 {[%clk 0:01:04.6]} 30... Nc3
{[%clk 0:00:42]} 31. Kf1 {[%clk 0:00:59.6]} 31... a5 {[%clk 0:00:40.5]} 32. Ke1
{[%clk 0:00:45.4]} 32... Nxa4 {[%clk 0:00:40.1]} 33. d5 {[%clk 0:00:28.4]} 33...
Rd6 {[%clk 0:00:39.8]} 34. e4 {[%clk 0:00:28.8]} 34... Nc3 {[%clk 0:00:37]} 35.
f3 {[%clk 0:00:29.1]} 35... Nxb5 {[%clk 0:00:33.3]} 36. Ne5 {[%clk 0:00:27.7]}
36... b3 {[%clk 0:00:30.2]} 37. Nc4 {[%clk 0:00:21.9]} 37... a4 {[%clk
0:00:27.3]} 38. Nxd6 {[%clk 0:00:18.9]} 38... Nxd6 {[%clk 0:00:26.8]} 39. Kd2
{[%clk 0:00:18]} 39... b2 {[%clk 0:00:22.7]} 40. Rb1 {[%clk 0:00:18]} 40... a3
{[%clk 0:00:21.8]} 41. Kc3 {[%clk 0:00:16.5]} 41... b5 {[%clk 0:00:21.7]} 42.
Kb3 {[%clk 0:00:16]} 42... Nc4 {[%clk 0:00:21.8]} 43. Rd1 {[%clk 0:00:11.6]}
43... Kf8 {[%clk 0:00:20.6]} 44. d6 {[%clk 0:00:11.4]} 44... Ke8 {[%clk
0:00:21]} 45. d7+ {[%clk 0:00:11.7]} 45... Kd8 {[%clk 0:00:21.3]} 46. f4 {[%clk
0:00:10.6]} 46... Nd2+ {[%clk 0:00:18.9]} 47. Kxa3 {[%clk 0:00:05.1]} 47... b1=Q
{[%clk 0:00:17.3]} 48. Rxb1 {[%clk 0:00:06]} 48... Nxb1+ {[%clk 0:00:17.8]} 49.
Kb4 {[%clk 0:00:06.9]} 49... Kxd7 {[%clk 0:00:15.9]} 50. Kxb5 {[%clk 0:00:07]}
50... Nc3+ {[%clk 0:00:16.1]} 51. Kc4 {[%clk 0:00:07.7]} 51... Nxe4 {[%clk
0:00:17]} 52. Kd4 {[%clk 0:00:08.6]} 52... f5 {[%clk 0:00:16.8]} 53. g4 {[%clk
0:00:07]} 53... Ke6 {[%clk 0:00:16.8]} 54. gxh5 {[%clk 0:00:07]} 54... gxh5
{[%clk 0:00:17.7]} 0-1

[Event "Late-Titled-Tuesday-Blitz-May-14-2024"]
[Site "Chess.com"]
[Date "2024.05.14"]
[Round "10"]
[White "dropstoneDP"]
[Black "temus_galaktionov"]
[Result "0-1"]
[WhiteElo "2949"]
[BlackElo "2874"]
[TimeControl "180+1"]
[EndTime "15:54:56 PDT"]
[Termination "temus_galaktionov won on time"]

1. e4 {[%clk 0:02:43.2]} 1... c6 {[%clk 0:02:57]} 2. Nc3 {[%clk 0:02:40.8]} 2...
g6 {[%clk 0:02:57.9]} 3. d4 {[%clk 0:02:40.3]} 3... Bg7 {[%clk 0:02:58.8]} 4.
Nf3 {[%clk 0:02:40.7]} 4... d6 {[%clk 0:02:58.9]} 5. a4 {[%clk 0:02:38.9]} 5...
Nd7 {[%clk 0:02:59]} 6. Bc4 {[%clk 0:02:39]} 6... e5 {[%clk 0:02:59.5]} 7. dxe5
{[%clk 0:02:38.3]} 7... dxe5 {[%clk 0:03:00.4]} 8. O-O {[%clk 0:02:32.3]} 8...
Ngf6 {[%clk 0:03:00.4]} 9. b3 {[%clk 0:02:29.7]} 9... Qa5 {[%clk 0:02:58.9]} 10.
Qe1 {[%clk 0:02:21.7]} 10... Nb6 {[%clk 0:02:51]} 11. Bd3 {[%clk 0:02:18.5]}
11... Bf8 {[%clk 0:02:46.4]} 12. Nd5 {[%clk 0:02:17]} 12... Qxe1 {[%clk
0:02:42.3]} 13. Nxf6+ {[%clk 0:02:17.4]} 13... Ke7 {[%clk 0:02:42.7]} 14. Rxe1
{[%clk 0:02:15.6]} 14... Kxf6 {[%clk 0:02:42.9]} 15. Bg5+ {[%clk 0:02:14.4]}
15... Kg7 {[%clk 0:02:43.1]} 16. Nxe5 {[%clk 0:02:09.4]} 16... f6 {[%clk
0:02:38.8]} 17. a5 {[%clk 0:02:09.9]} 17... fxg5 {[%clk 0:02:22.2]} 18. axb6
{[%clk 0:02:09]} 18... Bc5 {[%clk 0:02:22.1]} 19. bxa7 {[%clk 0:02:04.7]} 19...
Rxa7 {[%clk 0:02:12.3]} 20. Rxa7 {[%clk 0:01:59.4]} 20... Bxa7 {[%clk
0:02:13.2]} 21. Nc4 {[%clk 0:01:54.2]} 21... Rd8 {[%clk 0:02:12]} 22. e5 {[%clk
0:01:48.9]} 22... Kf8 {[%clk 0:02:11.3]} 23. Nd6 {[%clk 0:01:44.4]} 23... Bc5
{[%clk 0:02:08.4]} 24. Nxc8 {[%clk 0:01:37.1]} 24... Rxc8 {[%clk 0:02:09.3]} 25.
g3 {[%clk 0:01:36]} 25... Re8 {[%clk 0:01:48.9]} 26. Kg2 {[%clk 0:01:35.5]}
26... g4 {[%clk 0:01:49.1]} 27. h3 {[%clk 0:01:33.2]} 27... gxh3+ {[%clk
0:01:47.1]} 28. Kxh3 {[%clk 0:01:34.1]} 28... Bd4 {[%clk 0:01:31.1]} 29. f4
{[%clk 0:01:33.4]} 29... Ra8 {[%clk 0:01:31.7]} 30. g4 {[%clk 0:01:27.1]} 30...
Ra5 {[%clk 0:01:17.3]} 31. g5 {[%clk 0:01:24]} 31... Ra1 {[%clk 0:01:13.9]} 32.
Rxa1 {[%clk 0:01:04.9]} 32... Bxa1 {[%clk 0:01:14.8]} 33. Kg4 {[%clk 0:01:05.3]}
33... Bc3 {[%clk 0:01:11.4]} 34. Kf3 {[%clk 0:01:04.1]} 34... b5 {[%clk
0:01:05.5]} 35. Be4 {[%clk 0:01:02.4]} 35... c5 {[%clk 0:01:05.7]} 36. Bd3
{[%clk 0:01:00]} 36... b4 {[%clk 0:01:04.8]} 37. Ke4 {[%clk 0:01:00.5]} 37...
Bd4 {[%clk 0:01:04.1]} 38. Bc4 {[%clk 0:00:58.4]} 38... Bc3 {[%clk 0:01:04.1]}
39. Kd5 {[%clk 0:00:55.9]} 39... Bd4 {[%clk 0:01:03.4]} 40. Bd3 {[%clk
0:00:52.9]} 40... Ke7 {[%clk 0:01:02.3]} 41. f5 {[%clk 0:00:51.7]} 41... gxf5
{[%clk 0:01:02.1]} 42. Bxf5 {[%clk 0:00:52.6]} 42... Be3 {[%clk 0:01:02.6]} 43.
Bxh7 {[%clk 0:00:52.8]} 43... Bxg5 {[%clk 0:01:02.8]} 44. Kxc5 {[%clk
0:00:53.2]} 44... Bd2 {[%clk 0:01:03]} 45. c4 {[%clk 0:00:40.7]} 45... bxc3
{[%clk 0:01:03.9]} 46. Kd5 {[%clk 0:00:39]} 46... Kd7 {[%clk 0:00:48.3]} 47. Bc2
{[%clk 0:00:37.9]} 47... Kc7 {[%clk 0:00:47.9]} 48. b4 {[%clk 0:00:37.3]} 48...
Kb6 {[%clk 0:00:48.1]} 49. e6 {[%clk 0:00:36]} 49... Bg5 {[%clk 0:00:48.1]} 50.
Kc4 {[%clk 0:00:36.3]} 50... Bf6 {[%clk 0:00:47.7]} 51. Be4 {[%clk 0:00:31.6]}
51... Kc7 {[%clk 0:00:47.8]} 52. Kd5 {[%clk 0:00:24.8]} 52... Kb6 {[%clk
0:00:45.2]} 53. Kc4 {[%clk 0:00:20.9]} 53... Kc7 {[%clk 0:00:45.4]} 54. Kb3
{[%clk 0:00:06.7]} 54... Kd6 {[%clk 0:00:43.2]} 55. Bf5 {[%clk 0:00:06.8]} 55...
Kd5 {[%clk 0:00:37.4]} 56. Bh3 {[%clk 0:00:04.5]} 56... Kd6 {[%clk 0:00:37.6]}
57. Kc2 {[%clk 0:00:03.7]} 57... Kd5 {[%clk 0:00:37.8]} 0-1

[Event "Late-Titled-Tuesday-Blitz-May-14-2024"]
[Site "Chess.com"]
[Date "2024.05.14"]
[Round "10"]
[White "The_Straightforward_Rook"]
[Black "jcmesafischer"]
[Result "1-0"]
[WhiteElo "2496"]
[BlackElo "2324"]
[TimeControl "180+1"]
[EndTime "15:54:56 PDT"]
[Termination "The_Straightforward_Rook won by checkmate"]

1. d4 {[%clk 0:02:57.7]} 1... Nf6 {[%clk 0:02:53.3]} 2. c4 {[%clk 0:02:57]} 2...
e6 {[%clk 0:02:51.8]} 3. Nf3 {[%clk 0:02:56.1]} 3... Bb4+ {[%clk 0:02:44]} 4.
Nbd2 {[%clk 0:02:51.9]} 4... O-O {[%clk 0:02:39.1]} 5. a3 {[%clk 0:02:47.5]}
5... Bxd2+ {[%clk 0:02:37.9]} 6. Qxd2 {[%clk 0:02:47.1]} 6... d6 {[%clk
0:02:38.7]} 7. b3 {[%clk 0:02:42.7]} 7... b6 {[%clk 0:02:35.5]} 8. Bb2 {[%clk
0:02:42.9]} 8... Bb7 {[%clk 0:02:35.1]} 9. g4 {[%clk 0:02:42.5]} 9... c5 {[%clk
0:02:32.9]} 10. g5 {[%clk 0:02:33.9]} 10... Ne4 {[%clk 0:02:32.2]} 11. Qe3
{[%clk 0:02:34.4]} 11... d5 {[%clk 0:02:20.9]} 12. O-O-O {[%clk 0:02:28.9]}
12... cxd4 {[%clk 0:02:17.1]} 13. Qxd4 {[%clk 0:02:25.2]} 13... f6 {[%clk
0:02:12.3]} 14. gxf6 {[%clk 0:02:23.9]} 14... Nc6 {[%clk 0:02:07.1]} 15. Qe3
{[%clk 0:02:19]} 15... Rxf6 {[%clk 0:02:03.8]} 16. cxd5 {[%clk 0:02:07.5]} 16...
exd5 {[%clk 0:02:01.9]} 17. Rg1 {[%clk 0:02:02]} 17... Na5 {[%clk 0:01:51.4]}
18. Kb1 {[%clk 0:01:56.1]} 18... Qe7 {[%clk 0:01:38.1]} 19. Bh3 {[%clk
0:01:46.3]} 19... Re8 {[%clk 0:01:28.3]} 20. Ka2 {[%clk 0:01:20.2]} 20... Qf7
{[%clk 0:01:15.4]} 21. Ne5 {[%clk 0:01:10.3]} 21... Rxe5 {[%clk 0:01:03]} 22.
Bxe5 {[%clk 0:01:08.9]} 22... g6 {[%clk 0:00:46.8]} 23. f3 {[%clk 0:01:07.9]}
23... Nc5 {[%clk 0:00:45.8]} 24. Bxf6 {[%clk 0:00:46.7]} 24... Qxf6 {[%clk
0:00:42]} 25. b4 {[%clk 0:00:47.2]} 25... Nc4 {[%clk 0:00:21.1]} 26. Qd4 {[%clk
0:00:46.3]} 26... Qxd4 {[%clk 0:00:17.4]} 27. Rxd4 {[%clk 0:00:46.2]} 27... Na4
{[%clk 0:00:14.7]} 28. Be6+ {[%clk 0:00:43.9]} 28... Kg7 {[%clk 0:00:14.2]} 29.
Bxd5 {[%clk 0:00:44.6]} 29... Bxd5 {[%clk 0:00:14.2]} 30. Rxd5 {[%clk
0:00:45.4]} 30... Nc3+ {[%clk 0:00:14.6]} 31. Kb3 {[%clk 0:00:45]} 31... Nxd5
{[%clk 0:00:13.1]} 32. Kxc4 {[%clk 0:00:45.7]} 32... Nf4 {[%clk 0:00:13.2]} 33.
e3 {[%clk 0:00:43.7]} 33... Ne6 {[%clk 0:00:11.4]} 34. Kd5 {[%clk 0:00:43.3]}
34... Kf6 {[%clk 0:00:11.5]} 35. Rc1 {[%clk 0:00:42.2]} 35... Ke7 {[%clk
0:00:11.9]} 36. f4 {[%clk 0:00:40.5]} 36... Kd7 {[%clk 0:00:10.3]} 37. h4 {[%clk
0:00:39.9]} 37... Ng7 {[%clk 0:00:07.7]} 38. e4 {[%clk 0:00:38.9]} 38... Ne8
{[%clk 0:00:07.8]} 39. e5 {[%clk 0:00:38.5]} 39... Ng7 {[%clk 0:00:08.1]} 40.
Rh1 {[%clk 0:00:32.4]} 40... Ne6 {[%clk 0:00:06.5]} 41. Ke4 {[%clk 0:00:30.9]}
41... Nc7 {[%clk 0:00:04.5]} 42. h5 {[%clk 0:00:29.7]} 42... Nb5 {[%clk
0:00:03.1]} 43. hxg6 {[%clk 0:00:24.3]} 43... hxg6 {[%clk 0:00:04]} 44. Rg1
{[%clk 0:00:24]} 44... Nxa3 {[%clk 0:00:03.7]} 45. Rxg6 {[%clk 0:00:24.1]} 45...
Nc2 {[%clk 0:00:04.4]} 46. Rg7+ {[%clk 0:00:24.1]} 46... Ke8 {[%clk 0:00:03.6]}
47. Rxa7 {[%clk 0:00:24]} 47... Nxb4 {[%clk 0:00:04.3]} 48. Rb7 {[%clk 0:00:23]}
48... Nc6 {[%clk 0:00:03.7]} 49. Rxb6 {[%clk 0:00:22.2]} 49... Ne7 {[%clk
0:00:03.6]} 50. f5 {[%clk 0:00:21.1]} 50... Ng8 {[%clk 0:00:01.9]} 51. f6 {[%clk
0:00:20.4]} 51... Kf7 {[%clk 0:00:01.5]} 52. Rb7+ {[%clk 0:00:19.7]} 52... Kf8
{[%clk 0:00:00.3]} 53. Rg7 {[%clk 0:00:19]} 53... Nh6 {[%clk 0:00:00.8]} 54. e6
{[%clk 0:00:18.1]} 54... Nf7 {[%clk 0:00:01.7]} 55. Rxf7+ {[%clk 0:00:18]} 55...
Kg8 {[%clk 0:00:02.6]} 56. Ra7 {[%clk 0:00:17.8]} 56... Kh8 {[%clk 0:00:03.5]}
57. Kf5 {[%clk 0:00:17.3]} 57... Kg8 {[%clk 0:00:03.9]} 58. Kg6 {[%clk
0:00:17.7]} 58... Kh8 {[%clk 0:00:04.8]} 59. Ra8# {[%clk 0:00:18]} 1-0

[Event "Late-Titled-Tuesday-Blitz-May-14-2024"]
[Site "Chess.com"]
[Date "2024.05.14"]
[Round "10"]
[White "merinasian"]
[Black "ritanovikova"]
[Result "1-0"]
[WhiteElo "2490"]
[BlackElo "2165"]
[TimeControl "180+1"]
[EndTime "15:54:56 PDT"]
[Termination "merinasian won by resignation"]

1. d4 {[%clk 0:03:00.9]} 1... Nf6 {[%clk 0:02:58.2]} 2. Nf3 {[%clk 0:03:00.9]}
2... g6 {[%clk 0:02:59.1]} 3. Bf4 {[%clk 0:02:59.4]} 3... Bg7 {[%clk 0:03:00]}
4. e3 {[%clk 0:02:59.9]} 4... d6 {[%clk 0:02:59.8]} 5. Be2 {[%clk 0:02:59.3]}
5... O-O {[%clk 0:03:00.3]} 6. h3 {[%clk 0:02:59.6]} 6... Re8 {[%clk 0:03:00.4]}
7. O-O {[%clk 0:02:59.6]} 7... Nbd7 {[%clk 0:02:58]} 8. c4 {[%clk 0:02:58]} 8...
e5 {[%clk 0:02:58]} 9. Bh2 {[%clk 0:02:58.4]} 9... e4 {[%clk 0:02:56.2]} 10.
Nfd2 {[%clk 0:02:57.8]} 10... d5 {[%clk 0:02:50.2]} 11. cxd5 {[%clk 0:02:56.1]}
11... Nxd5 {[%clk 0:02:51.1]} 12. Nc3 {[%clk 0:02:54.9]} 12... Nxc3 {[%clk
0:02:50.3]} 13. bxc3 {[%clk 0:02:55.2]} 13... f5 {[%clk 0:02:50.4]} 14. Nc4
{[%clk 0:02:27]} 14... Nb6 {[%clk 0:02:33]} 15. Ne5 {[%clk 0:02:26]} 15... Be6
{[%clk 0:02:18.7]} 16. Qc2 {[%clk 0:02:08.7]} 16... Nd7 {[%clk 0:02:17.8]} 17.
Nxd7 {[%clk 0:02:02.1]} 17... Qxd7 {[%clk 0:02:17.1]} 18. c4 {[%clk 0:02:03]}
18... c6 {[%clk 0:02:16.8]} 19. Rab1 {[%clk 0:02:02.4]} 19... Bf8 {[%clk
0:02:06.4]} 20. Rfd1 {[%clk 0:01:47.7]} 20... Rac8 {[%clk 0:02:02.2]} 21. Qa4
{[%clk 0:01:43]} 21... b6 {[%clk 0:01:58.4]} 22. Qa6 {[%clk 0:01:33.6]} 22...
Re7 {[%clk 0:01:36.9]} 23. d5 {[%clk 0:01:32.7]} 23... cxd5 {[%clk 0:01:27.2]}
24. cxd5 {[%clk 0:01:32.8]} 24... Bf7 {[%clk 0:01:19.2]} 25. d6 {[%clk
0:01:24.7]} 25... Ree8 {[%clk 0:01:12.4]} 26. Bb5 {[%clk 0:01:24.2]} 26... Qe6
{[%clk 0:00:58.2]} 27. d7 {[%clk 0:01:22.2]} 27... Red8 {[%clk 0:00:47.3]} 28.
dxc8=Q {[%clk 0:01:16.5]} 28... Qxc8 {[%clk 0:00:47.1]} 29. Qxc8 {[%clk
0:01:14.1]} 29... Rxc8 {[%clk 0:00:48]} 30. a4 {[%clk 0:01:09.2]} 30... Kg7
{[%clk 0:00:34.3]} 31. Rd7 {[%clk 0:01:04.3]} 31... Kg8 {[%clk 0:00:34.2]} 32.
Rxa7 {[%clk 0:01:03.2]} 32... Bb4 {[%clk 0:00:29.7]} 33. Bc7 {[%clk 0:00:52.2]}
33... Ba5 {[%clk 0:00:28.7]} 34. Rd1 {[%clk 0:00:48.4]} 34... Kg7 {[%clk
0:00:24]} 35. Rd7 {[%clk 0:00:40.9]} 35... Kh6 {[%clk 0:00:17.8]} 36. Bf4+
{[%clk 0:00:40]} 36... g5 {[%clk 0:00:17.2]} 37. Rxf7 {[%clk 0:00:38.8]} 37...
gxf4 {[%clk 0:00:16.9]} 38. Rxh7+ {[%clk 0:00:38]} 38... Kg6 {[%clk 0:00:16.9]}
39. exf4 {[%clk 0:00:35.8]} 39... Rc1+ {[%clk 0:00:14.3]} 40. Kh2 {[%clk
0:00:35.8]} 40... Bd2 {[%clk 0:00:13.5]} 41. g3 {[%clk 0:00:26.7]} 41... e3
{[%clk 0:00:13.2]} 42. fxe3 {[%clk 0:00:24.9]} 42... Bxe3 {[%clk 0:00:13.3]} 43.
Be8+ {[%clk 0:00:21.1]} 43... Kf6 {[%clk 0:00:12.1]} 44. Rhf7+ {[%clk
0:00:20.3]} 44... Ke6 {[%clk 0:00:10.9]} 45. Rfe7+ {[%clk 0:00:20.3]} 45... Kd6
{[%clk 0:00:11]} 46. Rxe3 {[%clk 0:00:20.6]} 46... Rc2+ {[%clk 0:00:11.3]} 47.
Kg1 {[%clk 0:00:20.2]} 47... Rc1+ {[%clk 0:00:11.4]} 48. Kf2 {[%clk 0:00:20.3]}
48... Rc2+ {[%clk 0:00:11.9]} 49. Re2 {[%clk 0:00:20.4]} 49... Rc3 {[%clk
0:00:12.2]} 50. h4 {[%clk 0:00:19.9]} 50... Rc4 {[%clk 0:00:12.2]} 51. h5 {[%clk
0:00:19.7]} 51... Rc7 {[%clk 0:00:12.8]} 52. Rxc7 {[%clk 0:00:18.8]} 1-0